[Event "*** Titled Tuesday Blitz"]
[Site "Chess.com"]
[Date "2020.04.14"]
[Round "2"]
[White "ClockworkKubrick"]
[Black "Vojtastr"]
[Result "0-1"]
[WhiteElo "2215"]
[BlackElo "2480"]
[TimeControl "180+1"]
[EndTime "10:17:27 PDT"]
[Termination "Vojtastr won by resignation"]

1. e4 {[%clk 0:03:00.9]} 1... c5 {[%clk 0:02:58.3]} 2. Nf3 {[%clk 0:03:01.2]}
2... Nc6 {[%clk 0:02:57.4]} 3. Nc3 {[%clk 0:03:01.8]} 3... g6 {[%clk 0:02:56.4]}
4. Bb5 {[%clk 0:03:01.7]} 4... Bg7 {[%clk 0:02:56.1]} 5. O-O {[%clk 0:03:01]}
5... e5 {[%clk 0:02:50.4]} 6. d3 {[%clk 0:03:00.5]} 6... Nge7 {[%clk 0:02:50]}
7. Be3 {[%clk 0:03:00.3]} 7... d6 {[%clk 0:02:48.7]} 8. Qd2 {[%clk 0:02:58.7]}
8... O-O {[%clk 0:02:46.7]} 9. Bxc6 {[%clk 0:02:59]} 9... bxc6 {[%clk
0:02:43.1]} 10. Bh6 {[%clk 0:02:59.3]} 10... f5 {[%clk 0:02:43.4]} 11. Bxg7
{[%clk 0:02:59.4]} 11... Kxg7 {[%clk 0:02:44.3]} 12. h3 {[%clk 0:02:58.7]} 12...
fxe4 {[%clk 0:02:37.5]} 13. dxe4 {[%clk 0:02:56.7]} 13... Bxh3 {[%clk
0:02:08.1]} 14. Nxe5 {[%clk 0:02:49.9]} 14... Bxg2 {[%clk 0:02:05.9]} 15. Nxc6
{[%clk 0:02:36.7]} 15... Nxc6 {[%clk 0:01:54.6]} 16. Kxg2 {[%clk 0:02:36.1]}
16... Nd4 {[%clk 0:01:44.4]} 17. Rh1 {[%clk 0:02:34.4]} 17... h5 {[%clk
0:01:30.5]} 18. Rh3 {[%clk 0:02:27.3]} 18... Qf6 {[%clk 0:00:56.7]} 19. Nd5
{[%clk 0:02:13]} 19... Qe6 {[%clk 0:00:41.7]} 20. f3 {[%clk 0:02:05.7]} 20...
Nxf3 {[%clk 0:00:17.7]} 21. Rxf3 {[%clk 0:02:01.5]} 21... Rxf3 {[%clk
0:00:18.6]} 22. Kxf3 {[%clk 0:02:00]} 22... Qg4+ {[%clk 0:00:11.9]} 23. Ke3
{[%clk 0:01:56.2]} 23... Rf8 {[%clk 0:00:06.7]} 24. Qe2 {[%clk 0:01:22.9]} 24...
Qg3+ {[%clk 0:00:03]} 25. Kd2 {[%clk 0:01:21.4]} 25... Rf2 {[%clk 0:00:03]} 26.
Re1 {[%clk 0:01:15.9]} 26... h4 {[%clk 0:00:02.8]} 27. Ne3 {[%clk 0:01:04.9]}
27... Rxe2+ {[%clk 0:00:02.6]} 28. Rxe2 {[%clk 0:01:05.1]} 28... h3 {[%clk
0:00:03]} 29. Nf1 {[%clk 0:01:01.6]} 29... Qf4+ {[%clk 0:00:03.3]} 30. Ke1
{[%clk 0:01:01.5]} 30... Qc1+ {[%clk 0:00:03.9]} 31. Kf2 {[%clk 0:01:01.8]}
31... Qxb2 {[%clk 0:00:04.8]} 32. Kg3 {[%clk 0:01:00.1]} 32... Qxa2 {[%clk
0:00:04.6]} 33. Kxh3 {[%clk 0:01:00.5]} 33... Qc4 {[%clk 0:00:04.9]} 34. Re1
{[%clk 0:00:55]} 34... a5 {[%clk 0:00:05]} 35. Kg3 {[%clk 0:00:48.9]} 35... a4
{[%clk 0:00:05]} 36. Kf2 {[%clk 0:00:47.4]} 36... a3 {[%clk 0:00:05.3]} 37. Ne3
{[%clk 0:00:48.2]} 37... Qd4 {[%clk 0:00:03.5]} 38. c3 {[%clk 0:00:45.5]} 38...
Qxc3 {[%clk 0:00:03.7]} 39. Re2 {[%clk 0:00:44.8]} 39... Qb3 {[%clk 0:00:02.7]}
40. e5 {[%clk 0:00:43.5]} 40... a2 {[%clk 0:00:03.1]} 41. exd6 {[%clk
0:00:42.5]} 41... a1=Q {[%clk 0:00:03.1]} 42. d7 {[%clk 0:00:43]} 42... Qf6+
{[%clk 0:00:03.1]} 43. Ke1 {[%clk 0:00:41.5]} 43... Qd3 {[%clk 0:00:03.7]} 44.
Rd2 {[%clk 0:00:41.1]} 44... Qxd2+ {[%clk 0:00:04]} 45. Kxd2 {[%clk 0:00:41.4]}
45... Qd4+ {[%clk 0:00:04.8]} 46. Ke2 {[%clk 0:00:41.5]} 46... Qxd7 {[%clk
0:00:05.7]} 47. Ng4 {[%clk 0:00:41.4]} 47... Qxg4+ {[%clk 0:00:05.7]} 0-1

[Event "*** Titled Tuesday Blitz"]
[Site "Chess.com"]
[Date "2020.04.14"]
[Round "2"]
[White "csati17"]
[Black "JakubPulpan"]
[Result "0-1"]
[WhiteElo "2533"]
[BlackElo "2761"]
[TimeControl "180+1"]
[EndTime "10:17:28 PDT"]
[Termination "JakubPulpan won by resignation"]

1. c4 {[%clk 0:03:00.9]} 1... e6 {[%clk 0:02:58.7]} 2. Nf3 {[%clk 0:02:59.8]}
2... Nf6 {[%clk 0:02:56.5]} 3. g3 {[%clk 0:03:00.7]} 3... d5 {[%clk 0:02:55.1]}
4. Bg2 {[%clk 0:03:01.6]} 4... Be7 {[%clk 0:02:53.7]} 5. O-O {[%clk 0:03:01.8]}
5... O-O {[%clk 0:02:54.4]} 6. b3 {[%clk 0:03:02.4]} 6... b6 {[%clk 0:02:54.5]}
7. Bb2 {[%clk 0:03:01.4]} 7... Bb7 {[%clk 0:02:54.9]} 8. e3 {[%clk 0:03:01]}
8... c5 {[%clk 0:02:54]} 9. Nc3 {[%clk 0:03:00.1]} 9... Nbd7 {[%clk 0:02:50.3]}
10. Qe2 {[%clk 0:02:59.1]} 10... Rc8 {[%clk 0:02:48.6]} 11. Rfd1 {[%clk
0:02:55.6]} 11... Qc7 {[%clk 0:02:48.7]} 12. Rac1 {[%clk 0:02:51.9]} 12... Rfd8
{[%clk 0:02:48.4]} 13. h3 {[%clk 0:02:45.9]} 13... Qb8 {[%clk 0:02:48.2]} 14.
cxd5 {[%clk 0:02:43.3]} 14... Nxd5 {[%clk 0:02:48.1]} 15. Nxd5 {[%clk
0:02:36.7]} 15... Bxd5 {[%clk 0:02:49]} 16. d4 {[%clk 0:02:21.6]} 16... Qb7
{[%clk 0:02:36.2]} 17. Re1 {[%clk 0:02:11.8]} 17... cxd4 {[%clk 0:02:26.1]} 18.
e4 {[%clk 0:02:09.9]} 18... Rxc1 {[%clk 0:02:20.7]} 19. Bxc1 {[%clk 0:02:10.8]}
19... d3 {[%clk 0:02:20.6]} 20. Qe3 {[%clk 0:01:44.4]} 20... Bc6 {[%clk
0:02:15]} 21. Bb2 {[%clk 0:01:44]} 21... Bc5 {[%clk 0:01:24.6]} 22. Qg5 {[%clk
0:01:41.1]} 22... f6 {[%clk 0:01:24.6]} 23. Qg4 {[%clk 0:01:36.3]} 23... Nf8
{[%clk 0:01:21.2]} 24. Bxf6 {[%clk 0:01:30.6]} 24... h5 {[%clk 0:01:06.7]} 25.
Qg5 {[%clk 0:00:30.9]} 25... Nh7 {[%clk 0:01:04.2]} 26. Bxd8 {[%clk 0:00:22.5]}
26... Nxg5 {[%clk 0:01:04.2]} 27. Bxg5 {[%clk 0:00:20.9]} 27... Bxe4 {[%clk
0:01:02.9]} 28. Nh4 {[%clk 0:00:21.1]} 28... Bxg2 {[%clk 0:01:03]} 29. Nxg2
{[%clk 0:00:22]} 29... Bb4 {[%clk 0:00:54.6]} 30. Rxe6 {[%clk 0:00:16.2]} 30...
Qd7 {[%clk 0:00:45.9]} 31. Re4 {[%clk 0:00:08.9]} 31... d2 {[%clk 0:00:43.7]}
32. Bxd2 {[%clk 0:00:09.3]} 32... Bxd2 {[%clk 0:00:43.1]} 33. Kh2 {[%clk
0:00:07.9]} 33... Kh7 {[%clk 0:00:38.8]} 34. Nh4 {[%clk 0:00:07.5]} 34... Qd5
{[%clk 0:00:32.9]} 35. Re2 {[%clk 0:00:06.7]} 35... Bg5 {[%clk 0:00:32]} 36. Ng2
{[%clk 0:00:06.3]} 36... Qf3 {[%clk 0:00:31.9]} 37. Rc2 {[%clk 0:00:06.2]} 37...
h4 {[%clk 0:00:32.2]} 38. gxh4 {[%clk 0:00:03.2]} 38... Bf4+ {[%clk 0:00:32.8]}
39. Kg1 {[%clk 0:00:03.5]} 0-1

[Event "*** Titled Tuesday Blitz"]
[Site "Chess.com"]
[Date "2020.04.14"]
[Round "2"]
[White "SameerMujumdar"]
[Black "mrsavic77"]
[Result "0-1"]
[WhiteElo "2406"]
[BlackElo "2766"]
[TimeControl "180+1"]
[EndTime "10:17:29 PDT"]
[Termination "mrsavic77 won by resignation"]

1. e4 {[%clk 0:03:00.9]} 1... d5 {[%clk 0:02:58.9]} 2. exd5 {[%clk 0:02:59.9]}
2... Qxd5 {[%clk 0:02:59.8]} 3. Nc3 {[%clk 0:02:59.7]} 3... Qa5 {[%clk
0:03:00.3]} 4. Nf3 {[%clk 0:02:58.4]} 4... c6 {[%clk 0:03:00.7]} 5. d4 {[%clk
0:02:57.3]} 5... Nf6 {[%clk 0:03:01.1]} 6. Ne5 {[%clk 0:02:57.2]} 6... Nbd7
{[%clk 0:02:59.4]} 7. Nc4 {[%clk 0:02:55.2]} 7... Qd8 {[%clk 0:02:59.9]} 8. Be2
{[%clk 0:02:47.9]} 8... g6 {[%clk 0:02:55.4]} 9. Bg5 {[%clk 0:02:38.9]} 9... Bg7
{[%clk 0:02:55.2]} 10. Qd2 {[%clk 0:02:39.3]} 10... Nb6 {[%clk 0:02:50.6]} 11.
Nxb6 {[%clk 0:02:36.1]} 11... axb6 {[%clk 0:02:51.5]} 12. Rd1 {[%clk 0:02:29]}
12... O-O {[%clk 0:02:46.4]} 13. Bh6 {[%clk 0:02:27]} 13... b5 {[%clk
0:02:44.7]} 14. Bxg7 {[%clk 0:02:26.3]} 14... Kxg7 {[%clk 0:02:45.5]} 15. a3
{[%clk 0:02:26.4]} 15... Bf5 {[%clk 0:02:42.6]} 16. O-O {[%clk 0:02:22.9]} 16...
Qd6 {[%clk 0:02:39.7]} 17. Qe3 {[%clk 0:02:16.2]} 17... b4 {[%clk 0:02:33.6]}
18. axb4 {[%clk 0:02:15.3]} 18... Qxb4 {[%clk 0:02:34.5]} 19. Qc1 {[%clk
0:02:07.1]} 19... Rfd8 {[%clk 0:02:34.3]} 20. d5 {[%clk 0:01:51.3]} 20... cxd5
{[%clk 0:02:30.5]} 21. Bd3 {[%clk 0:01:46.5]} 21... Bg4 {[%clk 0:02:27.1]} 22.
Rde1 {[%clk 0:01:44.2]} 22... Rac8 {[%clk 0:02:00.2]} 23. h3 {[%clk 0:01:34.7]}
23... Be6 {[%clk 0:02:00.6]} 24. Nd1 {[%clk 0:01:17.6]} 24... d4 {[%clk
0:01:54.9]} 25. Qf4 {[%clk 0:01:15.7]} 25... Qd6 {[%clk 0:01:53.8]} 26. Qd2
{[%clk 0:01:15]} 26... Bc4 {[%clk 0:01:50.6]} 27. f4 {[%clk 0:01:11.6]} 27... e6
{[%clk 0:01:50]} 28. Nf2 {[%clk 0:01:10.2]} 28... Qb6 {[%clk 0:01:45.7]} 29. b3
{[%clk 0:01:08.8]} 29... Bxd3 {[%clk 0:01:44.7]} 30. Nxd3 {[%clk 0:01:09.7]}
30... Nd5 {[%clk 0:01:44.9]} 31. Rf3 {[%clk 0:01:00.5]} 31... Ne3 {[%clk
0:01:44.2]} 32. c4 {[%clk 0:00:59.2]} 32... Qxb3 {[%clk 0:01:32.3]} 33. Ne5
{[%clk 0:00:58.1]} 33... Qc2 {[%clk 0:01:26.8]} 34. Qxc2 {[%clk 0:00:52.5]}
34... Nxc2 {[%clk 0:01:27.7]} 35. Rc1 {[%clk 0:00:49.9]} 35... Ne3 {[%clk
0:01:25.3]} 36. g4 {[%clk 0:00:45.6]} 36... f6 {[%clk 0:01:24.9]} 37. Nd3 {[%clk
0:00:41.9]} 37... Rxc4 {[%clk 0:01:23.1]} 38. Rb1 {[%clk 0:00:41.6]} 38... Rc7
{[%clk 0:01:22]} 39. g5 {[%clk 0:00:41.4]} 39... Nd5 {[%clk 0:01:09.6]} 40. Rf2
{[%clk 0:00:34.1]} 40... Nc3 {[%clk 0:01:04.4]} 41. Re1 {[%clk 0:00:32.2]} 41...
Re8 {[%clk 0:01:03]} 42. h4 {[%clk 0:00:31.3]} 42... Nd5 {[%clk 0:01:02.8]} 43.
h5 {[%clk 0:00:30.3]} 43... gxh5 {[%clk 0:01:02]} 44. Rh2 {[%clk 0:00:28.5]}
44... Rc3 {[%clk 0:01:00.5]} 45. Nf2 {[%clk 0:00:25.4]} 45... Rg3+ {[%clk
0:00:58]} 46. Kf1 {[%clk 0:00:23.9]} 46... Ne3+ {[%clk 0:00:56.8]} 47. Ke2
{[%clk 0:00:22]} 47... fxg5 {[%clk 0:00:57.2]} 48. fxg5 {[%clk 0:00:21.6]} 48...
Ra8 {[%clk 0:00:56.3]} 49. Rxh5 {[%clk 0:00:17.6]} 49... Ra2+ {[%clk 0:00:54.9]}
50. Kd3 {[%clk 0:00:18.5]} 50... Rxf2 {[%clk 0:00:54.2]} 51. Reh1 {[%clk
0:00:17.9]} 51... Nf5+ {[%clk 0:00:51.7]} 52. Kc4 {[%clk 0:00:17.2]} 52... Rc3+
{[%clk 0:00:50.1]} 53. Kb4 {[%clk 0:00:15.3]} 53... Rb2+ {[%clk 0:00:49.5]} 54.
Ka4 {[%clk 0:00:15.6]} 54... Kg6 {[%clk 0:00:48.9]} 0-1

[Event "*** Titled Tuesday Blitz"]
[Site "Chess.com"]
[Date "2020.04.14"]
[Round "2"]
[White "tylityli"]
[Black "nurgyulsalimova"]
[Result "1-0"]
[WhiteElo "2138"]
[BlackElo "2535"]
[TimeControl "180+1"]
[EndTime "10:17:29 PDT"]
[Termination "tylityli won by checkmate"]

1. e4 {[%clk 0:02:55.1]} 1... c5 {[%clk 0:02:58.7]} 2. Nf3 {[%clk 0:02:53.7]}
2... Nc6 {[%clk 0:02:58.2]} 3. d4 {[%clk 0:02:53.8]} 3... cxd4 {[%clk
0:02:57.9]} 4. Nxd4 {[%clk 0:02:54.7]} 4... g6 {[%clk 0:02:56.9]} 5. Nc3 {[%clk
0:02:54.8]} 5... Bg7 {[%clk 0:02:56.4]} 6. Be3 {[%clk 0:02:55.3]} 6... Nf6
{[%clk 0:02:54.2]} 7. Be2 {[%clk 0:02:55.4]} 7... O-O {[%clk 0:02:49.5]} 8. O-O
{[%clk 0:02:55.2]} 8... d5 {[%clk 0:02:46.6]} 9. Nxc6 {[%clk 0:02:51.5]} 9...
bxc6 {[%clk 0:02:46.5]} 10. e5 {[%clk 0:02:51.4]} 10... Nd7 {[%clk 0:02:44.7]}
11. f4 {[%clk 0:02:51.6]} 11... e6 {[%clk 0:02:43.1]} 12. b4 {[%clk 0:02:47.8]}
12... f6 {[%clk 0:02:39.9]} 13. exf6 {[%clk 0:02:45.6]} 13... Qxf6 {[%clk
0:02:37.2]} 14. Bd2 {[%clk 0:02:37.4]} 14... e5 {[%clk 0:02:35]} 15. b5 {[%clk
0:02:31.1]} 15... e4 {[%clk 0:02:27.1]} 16. Rb1 {[%clk 0:02:18.9]} 16... Nb6
{[%clk 0:02:21]} 17. a4 {[%clk 0:02:06.4]} 17... Bd7 {[%clk 0:02:13.7]} 18. a5
{[%clk 0:02:05.2]} 18... Nc4 {[%clk 0:02:07.9]} 19. Bxc4 {[%clk 0:01:38.5]}
19... Qd4+ {[%clk 0:02:07.6]} 20. Kh1 {[%clk 0:01:33]} 20... Qxc4 {[%clk
0:02:07.8]} 21. bxc6 {[%clk 0:01:22]} 21... Bxc6 {[%clk 0:02:05.2]} 22. Ne2
{[%clk 0:01:18]} 22... d4 {[%clk 0:01:51.1]} 23. Rb4 {[%clk 0:01:14.9]} 23...
Qd5 {[%clk 0:01:50.9]} 24. Be1 {[%clk 0:01:05.9]} 24... d3 {[%clk 0:01:39.2]}
25. Nc3 {[%clk 0:00:58]} 25... Bxc3 {[%clk 0:01:29.6]} 26. Bxc3 {[%clk
0:00:58.9]} 26... e3 {[%clk 0:01:27.6]} 27. Rg1 {[%clk 0:00:56.9]} 27... d2
{[%clk 0:01:13.4]} 28. Qe2 {[%clk 0:00:43.6]} 28... Rab8 {[%clk 0:01:04.1]} 29.
Rd4 {[%clk 0:00:35.1]} 29... Qe6 {[%clk 0:01:00.5]} 30. Rd3 {[%clk 0:00:31.2]}
30... Rfe8 {[%clk 0:00:59.1]} 31. f5 {[%clk 0:00:18.3]} 31... Qxf5 {[%clk
0:00:45.5]} 32. Rxe3 {[%clk 0:00:16.8]} 32... Rxe3 {[%clk 0:00:45]} 33. Qxe3
{[%clk 0:00:17.7]} 33... Rd8 {[%clk 0:00:11.1]} 34. Qxa7 {[%clk 0:00:09.6]}
34... d1=Q {[%clk 0:00:09]} 35. Qg7# {[%clk 0:00:08.6]} 1-0

[Event "*** Titled Tuesday Blitz"]
[Site "Chess.com"]
[Date "2020.04.14"]
[Round "2"]
[White "K1TTYGANG"]
[Black "Kumi29"]
[Result "0-1"]
[WhiteElo "2117"]
[BlackElo "2406"]
[TimeControl "180+1"]
[EndTime "10:17:29 PDT"]
[Termination "Kumi29 won by resignation"]

1. c4 {[%clk 0:03:00.9]} 1... b6 {[%clk 0:02:59.2]} 2. Nc3 {[%clk 0:02:59.9]}
2... Bb7 {[%clk 0:02:59.5]} 3. d3 {[%clk 0:02:57.2]} 3... e6 {[%clk 0:02:59.5]}
4. e4 {[%clk 0:02:55.4]} 4... c5 {[%clk 0:02:54.8]} 5. Nge2 {[%clk 0:02:55.3]}
5... Nc6 {[%clk 0:02:54.6]} 6. g3 {[%clk 0:02:55.7]} 6... h5 {[%clk 0:02:52.6]}
7. Bg2 {[%clk 0:02:54.3]} 7... h4 {[%clk 0:02:51.8]} 8. O-O {[%clk 0:02:53.4]}
8... g6 {[%clk 0:02:37.5]} 9. f4 {[%clk 0:02:51.9]} 9... hxg3 {[%clk 0:02:36.2]}
10. hxg3 {[%clk 0:02:51.5]} 10... Bg7 {[%clk 0:02:33.9]} 11. Rb1 {[%clk
0:02:50.3]} 11... Nd4 {[%clk 0:02:32]} 12. Be3 {[%clk 0:02:49.3]} 12... Ne7
{[%clk 0:02:16.6]} 13. b4 {[%clk 0:02:48.6]} 13... Nxe2+ {[%clk 0:01:56.9]} 14.
Nxe2 {[%clk 0:02:47.9]} 14... d6 {[%clk 0:01:47.6]} 15. d4 {[%clk 0:02:08.3]}
15... cxb4 {[%clk 0:01:33]} 16. Rxb4 {[%clk 0:02:05.6]} 16... Rc8 {[%clk
0:01:33.5]} 17. d5 {[%clk 0:02:00.4]} 17... exd5 {[%clk 0:01:30.1]} 18. cxd5
{[%clk 0:02:00.5]} 18... Kf8 {[%clk 0:01:26.5]} 19. Bd4 {[%clk 0:01:57.8]} 19...
Ba6 {[%clk 0:01:16.2]} 20. Bxg7+ {[%clk 0:01:56.6]} 20... Kxg7 {[%clk
0:01:16.8]} 21. Re1 {[%clk 0:01:48.1]} 21... Qd7 {[%clk 0:01:14.5]} 22. Qa1+
{[%clk 0:01:22.3]} 22... Kg8 {[%clk 0:01:14.4]} 23. Nd4 {[%clk 0:00:50.4]} 23...
Qg4 {[%clk 0:01:09.4]} 24. Rb3 {[%clk 0:00:43.2]} 24... Rc5 {[%clk 0:00:44.2]}
25. Ra3 {[%clk 0:00:41.1]} 25... Bc4 {[%clk 0:00:40.9]} 26. Rxa7 {[%clk
0:00:40.6]} 26... Qxg3 {[%clk 0:00:37.3]} 27. Ra8+ {[%clk 0:00:40.9]} 27... Rc8
{[%clk 0:00:31.1]} 28. Rxc8+ {[%clk 0:00:40.9]} 28... Nxc8 {[%clk 0:00:32]} 29.
Nf3 {[%clk 0:00:39.3]} 29... Qxf4 {[%clk 0:00:25.6]} 30. Qd4 {[%clk 0:00:39.3]}
30... b5 {[%clk 0:00:23.9]} 31. a4 {[%clk 0:00:38.8]} 31... Ne7 {[%clk
0:00:22.3]} 32. axb5 {[%clk 0:00:37.4]} 32... Bxb5 {[%clk 0:00:22.7]} 33. Rb1
{[%clk 0:00:36.7]} 33... Bd7 {[%clk 0:00:21]} 34. Rb8+ {[%clk 0:00:36.5]} 34...
Bc8 {[%clk 0:00:19.3]} 35. Qa7 {[%clk 0:00:22.9]} 35... Qxe4 {[%clk 0:00:16.1]}
36. Qc7 {[%clk 0:00:17.6]} 36... Qe3+ {[%clk 0:00:14.9]} 37. Kf1 {[%clk
0:00:17.1]} 37... Kg7 {[%clk 0:00:14.9]} 38. Qc2 {[%clk 0:00:07.9]} 38... Ba6+
{[%clk 0:00:14.7]} 39. Rb5 {[%clk 0:00:06.2]} 39... Bxb5+ {[%clk 0:00:14.6]} 0-1

[Event "*** Titled Tuesday Blitz"]
[Site "Chess.com"]
[Date "2020.04.14"]
[Round "2"]
[White "diskeleven"]
[Black "Federtiu"]
[Result "1/2-1/2"]
[WhiteElo "2334"]
[BlackElo "2663"]
[TimeControl "180+1"]
[EndTime "10:17:31 PDT"]
[Termination "Game drawn by agreement"]

1. d4 {[%clk 0:03:00.9]} 1... d5 {[%clk 0:02:58.1]} 2. c4 {[%clk 0:03:00.2]}
2... e6 {[%clk 0:02:57.8]} 3. Nc3 {[%clk 0:02:56.9]} 3... c6 {[%clk 0:02:56.1]}
4. e3 {[%clk 0:02:55.6]} 4... f5 {[%clk 0:02:55.2]} 5. f4 {[%clk 0:02:52.6]}
5... Nf6 {[%clk 0:02:54.7]} 6. Nf3 {[%clk 0:02:50.3]} 6... Bb4 {[%clk
0:02:53.2]} 7. Bd2 {[%clk 0:02:50.2]} 7... Nbd7 {[%clk 0:02:52.9]} 8. Be2 {[%clk
0:02:47.4]} 8... O-O {[%clk 0:02:51.7]} 9. O-O {[%clk 0:02:47.5]} 9... Qe7
{[%clk 0:02:41.4]} 10. a3 {[%clk 0:02:47.5]} 10... Bd6 {[%clk 0:02:36.2]} 11. b4
{[%clk 0:02:43.6]} 11... Ne4 {[%clk 0:02:34.8]} 12. Nxe4 {[%clk 0:02:41.4]}
12... fxe4 {[%clk 0:02:34.5]} 13. Ne5 {[%clk 0:02:41.4]} 13... Nxe5 {[%clk
0:02:07.9]} 14. fxe5 {[%clk 0:02:41]} 14... Rxf1+ {[%clk 0:02:08.8]} 15. Qxf1
{[%clk 0:02:38.1]} 15... Bc7 {[%clk 0:02:09.7]} 16. b5 {[%clk 0:02:34.7]} 16...
cxb5 {[%clk 0:02:07.2]} 17. Bb4 {[%clk 0:02:32.2]} 17... Qe8 {[%clk 0:01:58.7]}
18. cxb5 {[%clk 0:02:20]} 18... Bd7 {[%clk 0:01:57.1]} 19. Rc1 {[%clk
0:02:12.9]} 19... Bd8 {[%clk 0:01:52.9]} 20. Bh5 {[%clk 0:02:06.1]} 20... g6
{[%clk 0:01:50.6]} 21. Be2 {[%clk 0:02:05.6]} 21... Bg5 {[%clk 0:01:49.6]} 22.
Qf2 {[%clk 0:01:50.4]} 22... Rc8 {[%clk 0:01:43.2]} 23. Rxc8 {[%clk 0:01:43.5]}
23... Qxc8 {[%clk 0:01:44.1]} 24. h4 {[%clk 0:01:43.8]} 24... Bh6 {[%clk
0:01:37.8]} 25. Kh2 {[%clk 0:00:54.2]} 25... Qe8 {[%clk 0:01:04.2]} 26. a4
{[%clk 0:00:46.4]} 26... Qf7 {[%clk 0:00:58]} 27. Qxf7+ {[%clk 0:00:45.2]} 27...
Kxf7 {[%clk 0:00:58.9]} 28. Bd2 {[%clk 0:00:43.5]} 28... Ke7 {[%clk 0:00:56.9]}
29. g4 {[%clk 0:00:43.5]} 29... Kd8 {[%clk 0:00:53.8]} 30. g5 {[%clk 0:00:43.3]}
30... Bf8 {[%clk 0:00:54.2]} 31. Kg3 {[%clk 0:00:40.8]} 31... Kc7 {[%clk
0:00:52.7]} 32. Ba5+ {[%clk 0:00:38.8]} 32... Kb8 {[%clk 0:00:39.6]} 33. h5
{[%clk 0:00:36.9]} 33... Ba3 {[%clk 0:00:35.1]} 34. h6 {[%clk 0:00:33.4]} 34...
Bc1 {[%clk 0:00:25.6]} 35. Kf4 {[%clk 0:00:33.3]} 35... Ba3 {[%clk 0:00:18.5]}
36. Bd8 {[%clk 0:00:28.7]} 36... Kc8 {[%clk 0:00:17.5]} 37. Ba5 {[%clk
0:00:28.4]} 37... Be7 {[%clk 0:00:17.3]} 38. Bf1 {[%clk 0:00:17.7]} 38... Kb8
{[%clk 0:00:15.8]} 39. Be2 {[%clk 0:00:18]} 1/2-1/2

[Event "*** Titled Tuesday Blitz"]
[Site "Chess.com"]
[Date "2020.04.14"]
[Round "2"]
[White "Perimir"]
[Black "avocadosheena"]
[Result "1-0"]
[WhiteElo "2433"]
[BlackElo "2161"]
[TimeControl "180+1"]
[EndTime "10:17:31 PDT"]
[Termination "Perimir won on time"]

1. e4 {[%clk 0:03:00.7]} 1... c5 {[%clk 0:02:55.4]} 2. Nf3 {[%clk 0:03:00.5]}
2... Nc6 {[%clk 0:02:51.7]} 3. d4 {[%clk 0:03:00.9]} 3... cxd4 {[%clk
0:02:51.7]} 4. Nxd4 {[%clk 0:03:01.8]} 4... Nf6 {[%clk 0:02:52]} 5. Nc3 {[%clk
0:03:02.2]} 5... d6 {[%clk 0:02:52.3]} 6. Bc4 {[%clk 0:03:02]} 6... Qb6 {[%clk
0:02:50.9]} 7. Be3 {[%clk 0:02:59.8]} 7... Qxb2 {[%clk 0:02:33.2]} 8. Ndb5
{[%clk 0:02:59.5]} 8... Qb4 {[%clk 0:02:17.3]} 9. Bd3 {[%clk 0:02:59.5]} 9...
Qa5 {[%clk 0:02:14.9]} 10. Bd2 {[%clk 0:02:59]} 10... Qd8 {[%clk 0:02:02.6]} 11.
Nd5 {[%clk 0:02:55.3]} 11... Nxd5 {[%clk 0:02:01.3]} 12. exd5 {[%clk 0:02:56.2]}
12... Ne5 {[%clk 0:01:58.6]} 13. Be2 {[%clk 0:02:54.2]} 13... a6 {[%clk
0:01:57]} 14. Nd4 {[%clk 0:02:53.3]} 14... g6 {[%clk 0:01:46.1]} 15. f4 {[%clk
0:02:33]} 15... Nd7 {[%clk 0:01:43.7]} 16. O-O {[%clk 0:02:30]} 16... Bg7 {[%clk
0:01:39.6]} 17. Be3 {[%clk 0:02:30.1]} 17... O-O {[%clk 0:01:19.6]} 18. a4
{[%clk 0:02:25.4]} 18... Nc5 {[%clk 0:01:08.1]} 19. a5 {[%clk 0:02:24.6]} 19...
Ne4 {[%clk 0:01:03.7]} 20. Qd3 {[%clk 0:01:53.5]} 20... Nc5 {[%clk 0:00:48.8]}
21. Qa3 {[%clk 0:01:35.9]} 21... Bd7 {[%clk 0:00:34.8]} 22. Rab1 {[%clk
0:01:33.1]} 22... Qc8 {[%clk 0:00:28.4]} 23. Rb6 {[%clk 0:01:22.9]} 23... Bg4
{[%clk 0:00:22.8]} 24. Bxg4 {[%clk 0:00:54.2]} 24... Qxg4 {[%clk 0:00:23.7]} 25.
h3 {[%clk 0:00:47.9]} 25... Qd7 {[%clk 0:00:19.4]} 26. Nb3 {[%clk 0:00:43]}
26... Ne4 {[%clk 0:00:14.1]} 27. Qb4 {[%clk 0:00:38.8]} 27... Ng3 {[%clk
0:00:09.7]} 28. Rxb7 {[%clk 0:00:28.2]} 28... Qc8 {[%clk 0:00:09]} 29. Rf2
{[%clk 0:00:25.8]} 29... Nf5 {[%clk 0:00:06.8]} 30. Bc1 {[%clk 0:00:17.5]} 30...
Bc3 {[%clk 0:00:06]} 31. Qb6 {[%clk 0:00:14.9]} 31... Nd4 {[%clk 0:00:03.1]} 32.
Rc7 {[%clk 0:00:12.4]} 32... Qb8 {[%clk 0:00:01.3]} 33. Rxe7 {[%clk 0:00:08.6]}
1-0